bitfinex/quotes_ETHUSD_20241204
["timestamp","ask_amount","ask_price","bid_price","bid_amount"]
[1733347223531,1.5153,3868.9,3867.1,0.1]
[1733347223725,3.33,3869.2,3867.1,0.1]
[1733347223726,1.5153,3868.7,3867.1,0.1]
[1733347223936,1.5153,3868.7,3866.7,0.1]
[1733347224103,1.5153,3868.7,3866.7,0.4501373]
[1733347224291,1.5153,3868.7,3866.9,0.1]
[1733347224596,1.5153,3868.7,3866.7,0.3501373]
[1733347224801,1.5153,3868.5,3866.6,0.33135821]
[1733347225007,1.7153,3868.4,3866.4,0.1]
[1733347225314,0.519683,3868.6,3866.2,0.34052389]
[1733347225315,1.5153,3867.7,3866.2,0.34052389]
[1733347225517,1.5153,3867.7,3865.9,0.1]
[1733347225720,1.5153,3867.7,3864.9,2.84577728]
[1733347225721,1.68683,3867.6,3865.6,0.1]
[1733347226033,1.68683,3867.6,3866.2,0.1]
[1733347226418,1.5153,3867.5,3866.2,0.1]
[1733347226802,1.5153,3867.5,3866.3,0.3501373]
[1733347227141,1.5153,3867.5,3866.4,0.1]
[1733347227450,1.5153,3867.5,3867.1,0.1]
[1733347227597,1.5153,3867.5,3867.3,3.0]
[1733347227799,1.5153,3867.5,3866.5,0.3501373]
[1733347228107,1.5153,3867.5,3867.0,0.1]
[1733347228413,1.5153,3867.5,3866.6,0.1]
[1733347228605,4.8453,3867.5,3866.6,0.1]
[1733347229011,4.8453,3867.5,3866.8,3.0]
[1733347229506,1.5153,3867.4,3866.4,0.33098277]
[1733347229842,1.5153,3867.3,3865.1,0.1]
[1733347230204,1.5153,3867.3,3865.0,6.89285789]
[1733347230205,1.5153,3867.3,3865.4,0.1]
[1733347230362,0.40163799,3867.4,3865.3,4.0]
[1733347230363,1.5153,3867.0,3865.3,4.0]
[1733347230645,1.5153,3866.6,3864.5,0.3501373]
[1733347230850,1.5153,3866.4,3864.6,0.1]
[1733347231268,1.5153,3866.1,3864.1,0.3359885]
[1733347231467,1.5153,3866.1,3864.4,0.3501373]
[1733347231684,1.5153,3866.1,3864.6,0.1]
[1733347232467,1.5153,3866.1,3863.9,0.3501373]
[1733347232619,1.5153,3866.0,3864.6,0.1]
[1733347232826,1.5153,3866.0,3864.9,0.1]
[1733347233025,1.5153,3866.0,3865.2,0.1]
[1733347233223,1.5153,3866.0,3865.4,3.0]
[1733347233462,1.5153,3866.0,3865.0,0.55]
[1733347233463,1.5153,3866.0,3865.6,3.1]
[1733347233665,4.8453,3866.0,3865.7,3.484102]
[1733347233869,3.33,3866.0,3865.8,3.0]
[1733347234052,3.33,3866.0,3865.9,6.484102]
[1733347236270,6.66,3866.0,3865.4,0.33202852]
[1733347236442,6.66,3866.0,3865.2,0.1]
[1733347236642,6.66,3866.0,3865.4,3.0]
[1733347236855,6.66,3866.0,3865.6,3.0]
[1733347237059,6.66,3866.0,3865.7,3.484102]
[1733347237265,6.66,3866.0,3865.8,3.2575]
[1733347237550,6.66,3866.0,3865.9,6.841602]
[1733347237969,5.41062193,3866.0,3865.9,7.391602]
[1733347238135,5.41062193,3866.0,3865.9,6.741602]
[1733347238330,5.41062193,3866.0,3865.9,6.841602]
[1733347238530,8.74062193,3866.0,3865.9,7.391602]
[1733347238927,8.74062193,3866.0,3865.9,6.741602]
[1733347239163,8.74062193,3866.0,3865.9,6.841602]
[1733347239368,8.74062193,3866.0,3865.9,7.391602]
[1733347239560,8.74062193,3866.0,3865.9,6.841602]
[1733347239870,8.74062193,3866.0,3865.9,6.19338823]
[1733347240728,3.72500613,3866.0,3865.9,7.09352553]
[1733347240973,3.72500613,3866.0,3865.9,6.54352553]
[1733347240974,7.05500613,3866.0,3865.9,6.54352553]
[1733347241172,7.05500613,3866.0,3865.9,6.19338823]
[1733347241558,7.05500613,3866.0,3865.9,3.19338823]
[1733347241779,7.05500613,3866.0,3865.9,0.59310823]
[1733347242159,7.91290674,3866.0,3865.9,0.59310823]
[1733347242461,7.91290674,3866.0,3865.9,0.33560823]
[1733347242657,7.91290674,3866.0,3864.1,1.5542]
[1733347242658,9.43690674,3866.0,3864.6,0.2575]
[1733347242857,1.524,3865.9,3864.6,0.2575]
[1733347243171,1.524,3865.9,3864.9,0.2575]
[1733347243345,4.854,3865.9,3864.9,0.2575]
[1733347243953,4.854,3865.9,3865.1,0.2575]
[1733347244169,4.854,3865.9,3865.3,3.2575]
[1733347244370,4.854,3865.9,3865.3,0.2575]
[1733347245046,4.854,3865.9,3865.1,0.2575]
[1733347245248,4.854,3865.9,3865.3,0.2575]
[1733347245599,4.854,3865.9,3865.5,3.2575]
[1733347245889,8.184,3865.9,3865.7,3.2575]
[1733347246074,8.184,3865.9,3865.8,6.741602]
[1733347246663,6.66,3865.9,3865.8,6.741602]
[1733347247364,6.66,3865.9,3865.8,0.2575]
[1733347247606,6.66,3865.9,3865.8,0.3575]
[1733347247809,6.66,3865.9,3865.8,3.3575]
[1733347248090,6.66,3865.9,3865.8,0.3575]
[1733347248382,4.56653325,3865.9,3865.8,12.9976373]
[1733347248687,1.98396807,3865.9,3865.8,17.9993393]
[1733347249008,6.45646904,3866.0,3865.9,0.8075]
[1733347249160,3.8740039,3866.0,3865.9,7.6417393]
[1733347249619,1.29140871,3866.0,3865.9,7.6417393]
[1733347249961,3.33,3866.4,3866.3,0.2575]
[1733347250235,3.33,3866.4,3866.3,7.391602]
[1733347250419,3.33,3866.4,3866.3,4.391602]
[1733347250698,3.7075546,3866.4,3866.3,7.7417393]
[1733347251058,1.1253996,3866.4,3866.3,9.62263214]
[1733347251296,3.33,3867.5,3866.3,9.62263214]
[1733347251297,3.33,3867.5,3867.4,0.2575]
[1733347251509,3.33,3867.5,3867.4,6.741602]
[1733347252299,3.33,3867.5,3867.4,6.484102]
[1733347253025,6.66,3867.5,3867.4,7.034102]
[1733347254010,5.44859027,3867.5,3867.4,16.1242393]
[1733347254317,5.44859027,3867.5,3867.4,16.3817393]
[1733347255092,5.44859027,3867.5,3867.4,16.3703096]
[1733347255516,8.77859027,3867.5,3867.4,16.3703096]
[1733347256324,6.19705553,3867.5,3867.4,15.8203096]
[1733347256526,6.19705553,3867.5,3867.4,16.1704469]
[1733347256738,6.19705553,3867.5,3867.4,15.8203096]
[1733347257032,6.19705553,3867.5,3867.4,16.1704469]
[1733347257185,6.19705553,3867.5,3867.4,15.8203096]
[1733347257380,6.19705553,3867.5,3867.4,16.3703096]
[1733347258117,9.52705553,3867.5,3867.4,16.3703096]
[1733347258520,9.52705553,3867.5,3867.4,9.0787076]
[1733347258820,9.52705553,3867.5,3867.4,3.8228096]
[1733347259115,8.23546837,3867.5,3867.4,0.3387076]
[1733347259321,8.23546837,3867.5,3866.6,0.1]
[1733347259508,8.23546837,3867.5,3866.7,3.484102]
[1733347259685,8.23546837,3867.5,3866.6,0.1]
[1733347260082,8.23546837,3867.5,3866.4,0.1]
[1733347260416,8.23546837,3867.5,3866.0,0.1]
[1733347260417,1.5125,3867.4,3866.0,0.1]
[1733347260621,1.5125,3867.4,3866.4,0.1]
[1733347261259,1.5125,3867.4,3865.8,0.1]
[1733347262055,1.5125,3867.4,3865.7,0.32968318]
[1733347262213,1.5753,3867.2,3865.3,0.1]
[1733347262413,0.2,3867.3,3865.4,0.1]
[1733347262414,1.5753,3867.0,3865.4,0.1]
[1733347263056,3.33,3867.0,3865.4,0.1]
[1733347263218,1.5753,3866.9,3865.4,0.1]
[1733347263414,1.5753,3866.9,3865.0,0.32101902]
[1733347263415,1.5753,3866.9,3865.8,0.1]
[1733347263636,1.5753,3866.9,3866.3,0.55]
[1733347263859,1.5753,3866.9,3866.5,3.0]
[1733347264021,1.5753,3866.9,3866.1,0.55]
[1733347264224,1.5753,3866.9,3866.4,0.1]
[1733347264425,1.5753,3866.9,3866.6,3.0]
[1733347264645,1.5753,3866.9,3866.7,3.484102]
[1733347264967,1.5753,3866.9,3866.8,3.0]
[1733347265165,3.33,3867.0,3866.9,0.55]
[1733347265316,3.33,3867.0,3866.9,7.034102]
[1733347267231,0.74816514,3867.0,3866.9,8.647202]
[1733347267423,11.56546837,3867.5,3867.4,0.1]
[1733347267617,11.56546837,3867.5,3867.4,15.874102]
[1733347267850,14.89546837,3867.5,3867.4,15.874102]
[1733347268074,11.01432342,3867.5,3867.4,15.874102]
[1733347268271,11.01432342,3867.5,3867.4,16.19512102]
[1733347268470,8.43287872,3867.5,3867.4,8.969902]
[1733347268748,8.43287872,3867.5,3867.4,9.29092102]
[1733347268950,5.85144403,3867.5,3867.4,9.29092102]
[1733347269143,3.26994932,3867.5,3867.4,9.29092102]
[1733347269455,0.68871471,3867.5,3867.4,6.10291186]
[1733347269655,1.09982271,3867.6,3867.4,5.80681902]
[1733347269891,1.09982271,3867.6,3867.5,7.291602]
[1733347270180,4.42982271,3867.6,3867.5,6.484102]
[1733347270644,4.39935033,3867.6,3867.5,6.484102]
[1733347272548,7.72935033,3867.6,3867.5,6.484102]
[1733347272858,7.72935033,3867.6,3867.5,7.034102]
[1733347275101,11.05935033,3867.6,3867.5,7.034102]
[1733347275248,9.81233492,3867.6,3867.5,6.484102]
[1733347275463,10.94657841,3867.6,3867.5,3.484102]
[1733347275794,9.81233492,3867.6,3867.5,3.484102]
[1733347276220,9.81233492,3867.6,3867.4,0.34380792]
[1733347276571,9.81233492,3867.6,3866.8,0.1]
[1733347277460,13.14233492,3867.6,3866.5,0.1]
[1733347277692,12.99064492,3867.6,3866.8,0.1]
[1733347277891,12.99064492,3867.6,3866.6,3.484102]
[1733347277892,12.95240562,3867.6,3867.3,0.55]
[1733347278107,12.95240562,3867.6,3867.5,0.55]
[1733347278407,12.95240562,3867.6,3867.5,4.034102]
[1733347278714,12.83662562,3867.6,3867.5,7.034102]
[1733347279235,12.66884555,3867.6,3867.5,7.034102]
[1733347279376,9.42568261,3867.6,3867.5,7.034102]
[1733347279576,9.42568261,3867.6,3867.5,7.35512102]
[1733347279816,6.47417812,3867.6,3867.5,7.35512102]
[1733347280016,7.22266339,3867.6,3867.5,7.35512102]
[1733347280390,4.8996598,3867.6,3867.5,7.35512102]
[1733347280585,2.3181751,3867.6,3867.5,7.35512102]
[1733347281421,3.33,3868.9,3868.6,0.1]
[1733347281578,3.33,3868.9,3868.8,3.55]
[1733347281779,3.33,3868.9,3868.8,7.134102]
[1733347282610,6.66,3868.9,3868.8,7.134102]
[1733347284116,2.81302484,3868.9,3868.8,7.391602]
[1733347284286,2.81302484,3868.9,3868.8,7.71262102]
[1733347284687,2.81302484,3868.9,3868.8,9.28432102]
[1733347284911,0.7792374,3869.2,3869.1,0.1]
[1733347285124,7.77014148,3869.6,3869.5,0.3575]
[1733347285323,7.77014148,3869.6,3869.5,4.391602]
[1733347285511,7.77014148,3869.6,3869.5,7.391602]
[1733347286032,7.77014148,3869.6,3869.5,7.034102]
[1733347286176,9.43304148,3869.6,3869.5,7.034102]
[1733347286377,9.43304148,3869.6,3869.5,6.484102]
[1733347286578,9.43304148,3869.6,3869.5,6.584102]
[1733347286788,9.43304148,3869.6,3869.5,6.484102]
[1733347286991,10.37634563,3869.6,3869.5,6.484102]
[1733347287242,10.37634563,3869.6,3869.3,0.33443097]
[1733347287402,13.70634563,3869.6,3869.3,0.33443097]
[1733347287728,13.70634563,3869.6,3868.7,0.2575]
[1733347287729,12.76304148,3869.6,3869.4,3.484102]
[1733347288029,12.76304148,3869.6,3869.1,0.1]
[1733347288237,12.76304148,3869.6,3869.3,0.1]
[1733347288390,11.10014148,3869.6,3869.4,3.484102]
[1733347288593,11.10014148,3869.6,3869.5,0.55]
[1733347288791,11.10014148,3869.6,3869.5,7.391602]
[1733347288988,11.10014148,3869.6,3869.5,18.33901386]
[1733347289190,7.05340291,3869.6,3869.5,18.04292102]
[1733347289785,10.38340291,3869.6,3869.5,18.04292102]
[1733347289987,10.38340291,3869.6,3869.5,17.721902]
[1733347290191,9.88340291,3869.6,3869.5,8.981902]
[1733347290464,9.88340291,3869.6,3869.5,8.724402]
[1733347291146,9.88340291,3869.6,3869.5,6.841602]
[1733347292132,9.88340291,3869.6,3869.5,6.584102]
[1733347292333,13.21340291,3869.6,3869.5,6.841602]
[1733347292624,13.21340291,3869.6,3869.5,7.16262102]
[1733347292831,10.6333088,3869.6,3869.5,15.90262102]
[1733347292991,10.6333088,3869.6,3869.5,17.46212102]
[1733347293190,8.0532547,3869.6,3869.5,17.46212102]
[1733347293839,8.0532547,3869.6,3869.5,18.01212102]
[1733347294956,11.3832547,3869.6,3869.5,18.01212102]
[1733347295759,11.3832547,3869.6,3869.5,22.01212102]
[1733347296934,6.22380193,3869.6,3869.5,22.21212102]
[1733347297234,3.33,3870.8,3870.7,0.65]
[1733347297437,3.33,3870.8,3870.7,15.874102]
[1733347297666,0.75088632,3870.8,3870.7,16.49121386]
[1733347297995,1.50172261,3871.0,3870.9,0.1]
[1733347298138,3.33,3871.6,3871.3,0.1]
[1733347298536,3.33,3871.6,3871.3,3.584102]
[1733347299023,3.33,3871.6,3871.3,6.584102]
[1733347299224,3.33,3871.6,3871.3,7.134102]
[1733347299725,6.66,3871.4,3871.3,7.134102]
[1733347301798,6.66,3871.4,3871.3,0.65]
[1733347302006,7.41114642,3871.4,3871.3,12.71101902]
[1733347302305,2.83706466,3871.4,3871.3,64.83301902]
[1733347302787,2.83706466,3871.4,3871.3,64.512]
[1733347302977,2.83706466,3871.4,3871.3,64.85494597]
[1733347303349,2.83706466,3871.4,3871.3,64.30494597]
[1733347304156,2.83706466,3871.4,3871.3,64.63375607]
[1733347304350,3.18833791,3871.4,3871.3,64.63375607]
[1733347305689,0.60936428,3871.4,3871.3,64.63375607]
[1733347306076,3.33,3871.6,3871.3,64.63375607]
[1733347306077,1.36054071,3871.6,3871.5,0.1]
[1733347306377,3.33,3871.7,3871.6,3.0]
[1733347306567,3.33,3871.7,3871.6,53.5]
[1733347306766,6.66,3871.7,3871.6,53.5]
[1733347307092,6.66,3871.7,3871.6,50.5]
[1733347307691,6.66,3871.7,3871.6,46.540158]
[1733347307850,6.66,3871.7,3871.6,35.573629]
[1733347308600,6.66,3871.7,3871.6,38.473629]
[1733347308797,6.66,3871.7,3871.6,38.573629]
[1733347308972,7.21,3871.7,3871.6,33.0723]
[1733347309170,0.55,3871.6,3871.3,0.34294597]
[1733347309381,0.55,3871.6,3871.0,0.02251657]
[1733347309382,1.5099,3871.5,3871.0,0.02251657]
[1733347309587,0.55,3871.4,3871.1,20.077862]
[1733347309801,0.55,3871.4,3871.0,0.02251657]
[1733347309802,2.0822,3871.3,3871.2,7.541269]
[1733347310008,11.044,3871.7,3871.0,0.02251657]
[1733347310009,2.0822,3871.2,3871.0,0.02251657]
[1733347310296,2.0822,3871.2,3871.1,4.582984]
[1733347310907,2.0822,3871.2,3871.0,0.02251657]
[1733347310908,0.55,3871.2,3871.0,0.02251657]
[1733347311116,0.55,3871.3,3871.0,0.02251657]
[1733347311264,0.55,3871.1,3871.0,0.02251657]
[1733347311468,2.214,3871.1,3871.0,0.02251657]
[1733347311701,1.6116,3870.8,3868.9,0.1]
[1733347311911,1.6116,3870.8,3868.2,1.6061]
[1733347311912,1.6116,3870.4,3868.2,1.9349101]
[1733347312120,1.6116,3870.2,3868.3,0.1]
[1733347312414,1.6116,3870.0,3868.2,0.1]
[1733347312568,0.55,3869.5,3868.2,0.1]
[1733347312768,0.55,3869.3,3868.2,0.1]
[1733347312967,1.538,3869.2,3868.2,0.1]
[1733347313163,0.55,3869.1,3868.2,0.1]
[1733347313401,9.18861863,3872.4,3867.4,0.3288101]
[1733347313402,0.55,3868.7,3867.8,0.32734112]
[1733347313609,0.55,3868.9,3867.7,0.1]
[1733347313769,0.55,3869.2,3866.8,0.1]
[1733347313974,0.55,3869.2,3866.5,1.5717]
[1733347313975,0.55,3868.8,3866.6,0.3288101]
[1733347314165,0.958,3868.8,3867.5,0.1]
[1733347314401,0.958,3868.8,3866.6,0.3288101]
[1733347314606,0.958,3868.8,3867.5,0.1]
[1733347316305,0.55,3868.8,3867.5,0.4424125]
[1733347316517,1.5058,3868.5,3867.5,0.4424125]
[1733347316670,0.55,3868.4,3867.5,0.4424125]
[1733347316871,0.55,3868.2,3867.5,0.4424125]
[1733347317112,0.55,3868.2,3867.7,3.0]
[1733347317319,0.55,3868.0,3867.5,0.3424125]
[1733347317494,0.55,3868.0,3866.7,0.3288101]
[1733347317495,0.55,3867.8,3866.9,0.1]
[1733347317666,0.55,3867.8,3866.7,0.3288101]
[1733347317667,0.81058,3867.8,3866.7,0.32804602]
[1733347317873,0.55,3867.4,3866.7,0.32804602]
[1733347318071,0.55,3867.2,3866.4,0.1]
[1733347319070,3.88,3867.2,3866.4,0.1]
[1733347320582,3.88,3867.2,3866.6,3.0]
[1733347320703,3.88,3867.2,3866.4,0.4357542]
[1733347320704,0.55,3867.0,3866.4,0.4357542]
[1733347321025,0.55,3866.6,3865.6,0.1]
[1733347321223,0.55,3866.6,3865.8,0.1]
[1733347321432,3.88,3866.6,3865.8,0.1]
[1733347321600,3.88,3866.6,3865.9,32.872414]
[1733347321794,1.5058,3866.5,3865.3,0.1]
[1733347321993,1.5058,3866.5,3865.7,0.1]
[1733347321994,0.55,3866.4,3865.7,0.1]
[1733347322810,0.95096974,3866.5,3866.2,0.1]
[1733347323038,0.95096974,3866.5,3866.4,3.0]
[1733347323326,1.50096974,3866.5,3866.4,6.154184]
[1733347323490,1.50096974,3866.5,3866.4,9.570882]
[1733347323691,1.50096974,3866.5,3866.4,6.570882]
[1733347323893,1.50096974,3866.5,3865.4,0.1]
[1733347323894,0.55,3866.4,3865.4,0.1]
[1733347324093,0.55,3866.4,3866.1,0.1]
[1733347324334,0.55,3866.4,3866.2,16.618498]
[1733347324532,0.55,3866.4,3866.3,17.035153]
[1733347324694,4.28096974,3866.5,3866.3,17.035153]
[1733347324695,3.33,3866.5,3866.3,0.4288101]
[1733347324897,3.33,3866.5,3866.4,37.512825]
[1733347325099,3.33,3866.5,3866.4,21.017343]
[1733347325406,3.33,3866.5,3866.4,2.4676]
[1733347325627,3.33,3866.5,3866.1,0.33610471]
[1733347325827,3.33,3866.5,3866.4,3.0]
[1733347326228,3.33,3866.5,3866.4,30.900635]
[1733347326554,6.66,3866.5,3866.4,32.591423]
[1733347326898,6.66,3866.5,3866.4,30.199902]
[1733347327938,5.36034813,3866.5,3866.4,30.199902]
[1733347328157,5.36034813,3866.5,3866.4,30.099902]
[1733347328328,6.92054813,3866.5,3866.4,9.358595]
[1733347328749,8.69034813,3866.5,3866.4,9.458595]
[1733347329751,9.24034813,3866.5,3866.4,6.69429643]
[1733347329963,9.24034813,3866.5,3866.4,2.86940143]
[1733347330763,9.24034813,3866.5,3866.4,10.14546743]
[1733347331073,9.24034813,3866.5,3866.4,21.18893043]
[1733347331367,14.09654813,3866.5,3866.4,3.33570143]
[1733347331667,14.09654813,3866.5,3865.0,1.6184]
[1733347331668,0.55,3866.4,3865.6,0.1]
[1733347331875,0.55,3866.4,3864.6,1.29582427]
[1733347331876,0.55,3866.4,3865.1,0.1]
[1733347332045,1.6493,3866.3,3865.1,0.1]
[1733347332253,13.76300294,3866.5,3864.8,0.1]
[1733347332254,0.55,3866.2,3864.8,0.1]
[1733347332447,0.55,3865.6,3865.1,0.34256259]
[1733347332652,0.55,3865.3,3864.3,0.1]
[1733347332972,0.55,3865.3,3863.7,1.6284]
[1733347332973,0.55,3865.3,3864.7,0.1]
[1733347333152,0.55,3865.3,3863.7,1.6284]
[1733347333153,0.55,3865.3,3864.5,0.1]
[1733347333355,0.55,3865.3,3864.6,26.509805]
[1733347333558,0.55,3865.3,3864.3,0.1]
[1733347333871,3.88,3865.3,3864.5,0.1]
[1733347334855,3.88,3865.3,3864.3,0.1]
[1733347335055,3.88,3865.3,3863.7,1.96387138]
[1733347335056,3.88,3865.3,3864.5,0.1]
[1733347335424,3.33,3865.3,3864.7,3.1]
[1733347335671,3.33,3865.3,3865.2,0.1]
[1733347336123,3.33,3865.3,3865.2,53.6]
[1733347336269,4.0771447,3865.3,3865.2,53.6]
[1733347336698,1.49422841,3865.3,3865.2,53.6]
[1733347336999,1.6414,3866.4,3866.1,0.1]
[1733347337213,12.02034813,3866.5,3866.1,0.1]
[1733347337214,12.02034813,3866.5,3866.2,23.639438]
[1733347337412,12.02034813,3866.5,3866.3,19.045005]
[1733347337566,12.02034813,3866.5,3866.4,10.862141]
[1733347337771,12.02034813,3866.5,3866.4,13.862141]
[1733347338077,12.02034813,3866.5,3866.4,20.583185]
[1733347338409,12.02034813,3866.5,3866.4,29.475617]
[1733347338572,12.02034813,3866.5,3866.4,43.82338]
[1733347338904,12.02034813,3866.5,3866.4,55.7069101]
[1733347338905,14.07668891,3866.5,3866.4,55.7069101]
[1733347339117,14.07668891,3866.5,3866.4,55.3781]
[1733347339667,11.49468397,3866.5,3866.4,55.7069101]
[1733347339970,8.91264902,3866.5,3866.4,55.3781]
[1733347340316,6.33057405,3866.5,3866.4,55.3781]
[1733347340875,6.33057405,3866.5,3866.4,53.8575]
[1733347341181,9.66057405,3866.5,3866.4,53.7575]
[1733347341382,9.66057405,3866.5,3866.4,18.400271]
[1733347341583,9.66057405,3866.5,3866.4,5.351556]
[1733347341792,0.55,3866.4,3866.3,8.419674]
[1733347342109,0.55,3866.4,3866.2,0.5932463]
[1733347342110,2.1703,3866.3,3866.2,0.3357463]
[1733347342282,2.1703,3866.3,3866.2,8.369038]
[1733347342622,0.55,3866.2,3865.5,0.2575]
[1733347342913,0.55,3866.2,3865.7,0.2575]
[1733347343110,1.6203,3866.3,3865.8,16.055675]
[1733347343332,1.6203,3866.3,3865.9,0.2575]
[1733347343636,3.33,3866.3,3866.1,3.3575]
[1733347343834,3.33,3866.3,3866.2,33.444434]
[1733347343987,3.33,3866.3,3866.2,25.92369]
[1733347344327,3.33,3866.3,3866.2,26.02369]
[1733347345961,6.66,3866.3,3866.2,26.02369]
[1733347347241,6.66,3866.3,3866.2,26.35336256]
[1733347347523,6.66,3866.3,3866.2,0.68717256]
[1733347347728,6.66,3866.3,3866.2,50.68540956]
[1733347347895,6.66,3866.3,3866.2,50.26027856]
[1733347348224,6.66,3866.3,3866.2,46.79593956]
[1733347348432,9.99,3866.3,3866.2,46.69593956]
[1733347348598,9.99,3866.3,3866.2,46.79593956]
[1733347349635,8.76626014,3866.3,3866.2,46.79593956]
[1733347350139,8.76626014,3866.3,3866.2,46.55180156]
[1733347350435,8.76626014,3866.3,3866.2,46.45180156]
[1733347350803,8.76626014,3866.3,3866.2,39.46193456]
[1733347351014,12.09626014,3866.3,3866.2,39.46193456]
[1733347351297,12.64626014,3866.3,3866.2,8.42862556]
[1733347351811,12.64626014,3866.3,3866.2,5.42862556]
[1733347353102,12.64626014,3866.3,3866.2,8.42862556]
[1733347353577,15.97626014,3866.3,3866.2,8.42862556]
[1733347354367,15.97626014,3866.3,3866.2,8.52862556]
[1733347354665,15.42626014,3866.3,3866.2,8.52862556]
[1733347355279,12.47913506,3866.3,3866.2,17.26862556]
[1733347355704,12.47913506,3866.3,3866.2,17.16862556]
[1733347356005,15.80913506,3866.3,3866.2,17.26862556]
[1733347356912,16.35913506,3866.3,3866.2,8.42862556]
[1733347357074,16.35913506,3866.3,3866.2,8.17112556]
[1733347357269,0.55,3866.2,3865.4,0.2575]
[1733347357508,0.55,3866.2,3864.4,1.565]
[1733347357509,1.6422,3866.1,3865.5,6.199077]
[1733347357679,0.55,3866.0,3864.8,0.34021508]
[1733347357881,18.40515536,3866.3,3864.5,0.1]
[1733347357882,1.6422,3865.9,3864.5,0.1]
[1733347358077,0.55,3865.8,3864.4,0.2575]
[1733347358307,0.55,3865.6,3864.7,0.3575]
[1733347358678,0.55,3865.6,3864.7,0.2575]
[1733347358879,0.55,3865.6,3864.7,0.3575]
[1733347359076,0.55,3865.6,3864.7,0.2575]
[1733347359279,0.55,3865.4,3864.6,0.2575]
[1733347359874,0.55,3865.4,3864.7,19.8204]
[1733347360070,0.55,3865.4,3864.9,0.1]
[1733347360311,0.55,3865.4,3865.0,23.299159]
[1733347360523,0.55,3865.4,3865.1,3.0]
[1733347360684,0.55,3865.4,3865.3,3.0]
[1733347360895,3.88,3865.4,3865.3,9.659991]
[1733347361183,3.33,3865.4,3865.3,9.74905]
[1733347361514,3.33,3865.4,3865.0,25.467408]
[1733347362111,3.33,3865.4,3865.0,15.68428]
[1733347362427,3.33,3865.4,3865.1,15.807507]
[1733347362583,3.33,3865.4,3864.9,3.2575]
[1733347362584,3.33,3865.4,3865.0,29.262517]
[1733347362777,3.33,3865.4,3865.0,24.390913]
[1733347363115,0.55,3865.3,3865.1,3.0]
[1733347363417,0.55,3865.3,3865.2,19.960855]
[1733347363628,0.55,3865.3,3865.2,7.523092]
[1733347364481,6.66,3865.4,3865.2,7.523092]
[1733347364684,6.66,3865.4,3865.3,41.680148]
[1733347365024,6.66,3865.4,3865.3,53.7575]
[1733347365223,6.66,3865.4,3865.3,46.162004]
[1733347365377,6.66,3865.4,3865.3,46.02692]
[1733347365681,6.66,3865.4,3865.3,43.53173]
[1733347365882,10.54,3865.4,3865.3,22.56412]
[1733347366082,10.54,3865.4,3865.3,19.96387]
[1733347366320,10.54,3865.4,3865.3,19.70637]
[1733347367121,10.54,3865.4,3865.2,0.44123901]
[1733347367317,10.54,3865.4,3865.3,0.2575]
[1733347367318,9.99,3865.4,3865.3,0.2575]
[1733347367516,9.99,3865.4,3865.3,21.572794]
[1733347368084,9.99,3865.4,3865.3,19.630503]
[1733347368284,13.32,3865.4,3865.3,18.476045]
[1733347368479,13.87,3865.4,3865.3,18.476045]
[1733347368890,13.32,3865.4,3865.3,18.476045]
[1733347370714,17.2,3865.4,3865.3,18.476045]
[1733347371346,17.2,3865.4,3865.3,18.576045]
[1733347371644,16.65,3865.4,3865.3,20.129945]
[1733347372013,14.06704465,3865.4,3865.3,20.129945]
[1733347372209,12.77309623,3865.4,3865.3,29.20138578]
[1733347372428,6.59254623,3865.4,3865.3,29.20138578]
[1733347372746,4.00962089,3865.4,3865.3,29.20138578]
[1733347373111,4.23012628,3865.4,3865.3,29.49747862]
[1733347373312,3.33,3865.9,3865.3,31.94357862]
[1733347373541,3.33,3865.9,3865.8,0.3575]
[1733347373712,3.33,3865.9,3865.8,3.3575]
[1733347373923,3.33,3865.9,3865.8,53.8575]
[1733347375529,6.66,3865.9,3865.8,53.8575]
[1733347375954,4.0773748,3865.9,3865.8,53.8575]
[1733347376119,4.0773748,3865.9,3865.8,55.456]
[1733347376319,1.63061777,3865.9,3865.8,55.78744078]
[1733347376527,1.63061777,3865.9,3865.8,64.52744078]
[1733347376721,15.80913506,3866.3,3866.0,0.2575]
[1733347377081,15.80913506,3866.3,3866.2,11.9975]
[1733347377381,15.80913506,3866.3,3866.2,62.5975]
[1733347378026,19.13913506,3866.3,3866.2,62.5975]
[1733347378223,19.13913506,3866.3,3866.2,12.0975]
[1733347378428,17.92526634,3866.3,3866.2,50.8575]
[1733347379258,17.92526634,3866.3,3866.2,53.8575]
[1733347380361,18.47526634,3866.3,3866.2,47.608191]
[1733347380528,21.80526634,3866.3,3866.2,36.566063]
[1733347380727,21.80526634,3866.3,3866.2,30.852722]
[1733347380965,21.80526634,3866.3,3866.2,28.6665]
[1733347381171,21.80526634,3866.3,3866.2,28.431673]
[1733347381328,21.80526634,3866.3,3866.2,7.467404]
[1733347381534,0.55,3866.2,3866.1,7.622627]
[1733347382032,0.55,3866.2,3866.0,9.697968]
[1733347382761,0.55,3866.2,3866.1,3.0]
[1733347382941,3.88,3866.2,3866.1,28.256295]
[1733347383150,3.88,3866.2,3866.1,30.624045]
[1733347383330,3.88,3866.2,3866.1,24.145185]
[1733347383662,3.88,3866.2,3866.1,20.997429]
[1733347384045,3.88,3866.2,3866.1,9.857009]
[1733347385325,7.21,3866.2,3866.1,9.857009]
[1733347385664,7.21,3866.2,3866.1,10.19718959]
[1733347387472,7.21,3866.2,3866.1,9.857009]